fUSD/lending_fUSD_20260529
["ID","MTS","AMOUNT","RATE_DAILY","PERIOD"]
[423333886,1780062640000,-1730.39,0.00016113,2]
[423333885,1780062640000,-979.73,0.000161,2]
[423333882,1780062640000,-153.0,0.00016008,2]
[423333878,1780062640000,-1730.39,0.00015949,2]
[423333883,1780062640000,-1730.39,0.00016031,2]
[423333888,1780062640000,-1545.0,0.00016123,2]
[423333895,1780062640000,-300.0,0.00016179,2]
[423333890,1780062640000,-153.0,0.00016123,2]
[423333892,1780062640000,-153.0,0.00016123,2]
[423333893,1780062640000,-300.0,0.00016179,2]
[423333896,1780062640000,-1730.39,0.00016195,2]
[423333898,1780062640000,-178.0,0.0001622,2]
[423333899,1780062640000,-287.26620549,0.00016238,2]
[423333894,1780062640000,-300.0,0.00016179,2]
[423333900,1780062640000,-151.0,0.00016238,2]
[423333897,1780062640000,-1043.45278188,0.000162,2]
[423333901,1780062640000,-1730.39,0.00016277,2]
[423333877,1780062640000,-151.78,0.000159,2]
[423333903,1780062640000,-1799.0,0.00016301,2]
[423333891,1780062640000,-153.0,0.00016123,2]
[423333876,1780062640000,-1043.45278188,0.000159,2]
[423333857,1780062640000,-1730.39,0.00015457,2]
[423333875,1780062640000,-162.0,0.000159,2]
[423333902,1780062640000,-162.0,0.000163,2]
[423333850,1780062640000,-154.0,0.00015,2]
[423333848,1780062640000,-808.43,0.00015,2]
[423333851,1780062640000,-1730.39,0.00015047,2]
[423333854,1780062640000,-170.49062066,0.00015274,2]
[423333849,1780062640000,-500.0,0.00015,2]
[423333853,1780062640000,-1730.39,0.00015211,2]
[423333852,1780062640000,-1730.39,0.00015129,2]
[423333860,1780062640000,-1252.0,0.0001556,2]
[423333855,1780062640000,-1730.39,0.00015293,2]
[423333864,1780062640000,-154.76,0.0001562,2]
[423333861,1780062640000,-1043.45278188,0.000156,2]
[423333858,1780062640000,-7047.06542725,0.00015507,2]
[423333863,1780062640000,-153.0,0.00015601,2]
[423333859,1780062640000,-1730.39,0.00015539,2]
[423333866,1780062640000,-1043.45278188,0.000157,2]
[423333856,1780062640000,-1730.39,0.00015375,2]
[423333865,1780062640000,-1730.39,0.00015621,2]
[423333867,1780062640000,-1730.39,0.00015703,2]
[423333868,1780062640000,-2000.0,0.0001573,2]
[423333869,1780062640000,-320.0,0.0001573,2]
[423333870,1780062640000,-1152.0,0.00015739,2]
[423333872,1780062640000,-4609.0,0.00015789,2]
[423333871,1780062640000,-1730.39,0.00015785,2]
[423333874,1780062640000,-1730.39,0.00015867,2]
[423333873,1780062640000,-1280.0,0.00015839,2]
[423333904,1780062640000,-180.02,0.00016357,2]
[423333908,1780062640000,-7567.4,0.00016438,2]
[423333909,1780062640000,-264.62090357,0.00016438,2]
[423333933,1780062640000,-152.0,0.00017672,2]
[423333937,1780062640000,-154.76,0.00017852,2]
[423333938,1780062640000,-1094.0377033,0.0001788,2]
[423333939,1780062640000,-979.73,0.000179,2]
[423333940,1780062640000,-167.05,0.00017925,2]
[423333942,1780062640000,-151.0,0.00018,4]
[423333941,1780062640000,-1412.23292087,0.00017976,2]
[423333945,1780062640000,-1828.25359657,0.00018,2]
[423333946,1780062640000,-1760.66653465,0.00018,2]
[423333947,1780062640000,-462.0,0.00018082,2]
[423333943,1780062640000,-8153.8,0.00018,2]
[423333949,1780062640000,-300.0,0.000182,2]
[423333953,1780062640000,-300.0,0.00018212,2]
[423333948,1780062640000,-462.0,0.00018104,2]
[423333957,1780062640000,-7567.4,0.0001841,2]
[423333959,1780062640000,-1760.66653465,0.000185,2]
[423333950,1780062640000,-1828.25359657,0.000182,2]
[423333954,1780062640000,-10000.0,0.00018256,2]
[423333951,1780062640000,-1760.66653465,0.000182,2]
[423333952,1780062640000,-310.82954872,0.00018212,2]
[423333956,1780062640000,-1760.66653465,0.000184,2]
[423333958,1780062640000,-1828.25359657,0.000185,2]
[423333955,1780062640000,-1828.25359657,0.000184,2]
[423333961,1780062640000,-1545.0,0.00018602,2]
[423333960,1780062640000,-153.0,0.00018548,2]
[423333926,1780062640000,-2000.0,0.0001716,2]
[423333935,1780062640000,-2000.0,0.00017825,2]
[423333944,1780062640000,-350.0,0.00018,2]
[423333932,1780062640000,-169.55,0.00017672,2]
[423333912,1780062640000,-152.0,0.00016438,2]
[423333930,1780062640000,-6453.0,0.00017368,2]
[423333907,1780062640000,-1043.45278188,0.000164,2]
[423333911,1780062640000,-152.0,0.00016438,2]
[423333905,1780062640000,-1730.39,0.00016359,2]
[423333910,1780062640000,-462.0,0.00016438,2]
[423333906,1780062640000,-1043.4528,0.00016399,2]
[423333913,1780062640000,-152.0,0.00016438,2]
[423333914,1780062640000,-180.02,0.00016439,2]
[423333917,1780062640000,-1043.45278188,0.000167,2]
[423333916,1780062640000,-599.02589823,0.00016595,2]
[423333915,1780062640000,-1043.45278188,0.000165,2]
[423333921,1780062640000,-200.0,0.000168,3]
[423333924,1780062640000,-1043.45278188,0.00017,2]
[423333934,1780062640000,-7047.06542725,0.00017689,2]
[423333920,1780062640000,-665.47,0.000168,2]
[423333931,1780062640000,-1280.0,0.00017599,2]
[423333936,1780062640000,-500.0,0.00017825,2]
[423333929,1780062640000,-1613.0,0.000173,2]
[423333925,1780062640000,-801.0,0.00017048,2]
[423333928,1780062640000,-462.0,0.0001726,2]
[423333923,1780062640000,-151.0,0.00017,4]
[423333922,1780062640000,-1043.45278188,0.000169,2]
[423333918,1780062640000,-168.09,0.00016712,2]
[423333919,1780062640000,-2400.77,0.000168,2]
[423333927,1780062640000,-320.0,0.0001716,2]
[423334008,1780062641000,-150.0,0.00019112,2]
[423334001,1780062641000,-469.99,0.00019036,2]
[423334011,1780062641000,-150.0,0.00019132,2]
[423334003,1780062641000,-150.0,0.00019067,2]
[423334007,1780062641000,-150.0,0.00019111,2]
[423333991,1780062641000,-1886.0,0.00019,2]
[423334000,1780062641000,-150.0,0.00019028,2]
[423333997,1780062641000,-150.0,0.00019015,2]
[423333994,1780062641000,-245025.78913781,0.00019,2]
[423333996,1780062641000,-2258.0,0.00019014,2]
[423334004,1780062641000,-150.0,0.00019089,2]
[423334002,1780062641000,-150.0,0.00019045,2]
[423334005,1780062641000,-150.0,0.00019093,2]
[423334016,1780062641000,-1273.64793669,0.00019178,2]
[423334010,1780062641000,-150.0,0.0001912,2]
[423334009,1780062641000,-150.0,0.00019112,2]
[423334013,1780062641000,-150.0,0.00019171,2]
[423334023,1780062641000,-150.0,0.00019219,4]
[423334014,1780062641000,-150.0,0.00019176,2]
[423334012,1780062641000,-150.0,0.00019154,2]
[423334021,1780062641000,-150.0,0.000192,4]
[423334015,1780062641000,-300.0,0.00019177,2]
[423334022,1780062641000,-150.0,0.00019211,4]
[423334018,1780062641000,-20430.55,0.00019178,2]
[423334019,1780062641000,-150.0,0.00019197,4]
[423333995,1780062641000,-150.0,0.00019002,2]
[423334006,1780062641000,-9035.0,0.00019105,2]
[423333987,1780062641000,-150.0,0.00018937,2]
[423333972,1780062641000,-7390.55,0.0001872,2]
[423333993,1780062641000,-732.26858832,0.00019,2]
[423333971,1780062641000,-760.91,0.0001872,2]
[423333973,1780062641000,-1653.84,0.0001872,2]
[423334020,1780062641000,-158.35350894,0.00019199,2]
[423333974,1780062641000,-6120.17,0.0001872,2]
[423333963,1780062641000,-1545.0,0.00018602,2]
[423333968,1780062641000,-469.99,0.00018621,2]
[423333965,1780062641000,-153.0,0.00018602,2]
[423333967,1780062641000,-248.42248207,0.0001862,2]
[423333970,1780062641000,-1760.66653465,0.000187,2]
[423333969,1780062641000,-1828.25359657,0.000187,2]
[423333986,1780062641000,-150.0,0.00018937,2]
[423333976,1780062641000,-469.99,0.00018829,2]
[423333977,1780062641000,-500.0,0.00018877,2]
[423333980,1780062641000,-150.0,0.00018937,2]
[423333975,1780062641000,-9243.94,0.0001872,2]
[423333985,1780062641000,-150.0,0.00018937,2]
[423333982,1780062641000,-150.0,0.00018937,2]
[423333981,1780062641000,-150.0,0.00018937,2]
[423333979,1780062641000,-462.0,0.00018904,2]
[423333983,1780062641000,-150.0,0.00018937,2]
[423333978,1780062641000,-3500.0,0.000189,6]
[423333984,1780062641000,-150.0,0.00018937,2]
[423333988,1780062641000,-150.0,0.00018937,2]
[423333998,1780062641000,-150.0,0.00019024,2]
[423333999,1780062641000,-150.0,0.00019025,2]
[423333990,1780062641000,-150.0,0.0001898,2]
[423333989,1780062641000,-150.0,0.00018959,2]
[423333992,1780062641000,-151.0,0.00019,4]
[423334017,1780062641000,-264.35860867,0.00019178,2]
[423334029,1780062641000,-150.0,0.00019262,4]
[423334032,1780062641000,-150.0,0.00019288,4]
[423334057,1780062641000,-150.0,0.00019486,4]
[423334060,1780062641000,-150.0,0.00019538,4]
[423334059,1780062641000,-150.0,0.00019523,4]
[423334070,1780062641000,-150.0,0.00019638,4]
[423334063,1780062641000,-150.0,0.0001956,4]
[423334061,1780062641000,-150.0,0.00019544,4]
[423334067,1780062641000,-150.0,0.00019609,4]
[423334069,1780062641000,-150.0,0.00019631,4]
[423334068,1780062641000,-284.47464731,0.00019625,2]
[423334066,1780062641000,-150.0,0.00019588,4]
[423334064,1780062641000,-150.0,0.00019566,4]
[423334062,1780062641000,-150.0,0.00019551,4]
[423334056,1780062641000,-150.0,0.00019482,4]
[423334065,1780062641000,-150.0,0.00019577,4]
[423334082,1780062641000,-150.0,0.00019761,4]
[423334080,1780062641000,-150.0,0.0001974,4]
[423334074,1780062641000,-150.0,0.00019669,4]
[423334073,1780062641000,-150.0,0.00019653,4]
[423334076,1780062641000,-150.0,0.00019696,4]
[423334077,1780062641000,-150.0,0.00019716,4]
[423334075,1780062641000,-150.0,0.00019675,4]
[423334071,1780062641000,-150.0,0.00019638,4]
[423334081,1780062641000,-150.0,0.0001976,4]
[423334079,1780062641000,-150.0,0.00019726,4]
[423334083,1780062641000,-150.0,0.00019783,4]
[423334024,1780062641000,-196.91865353,0.00019237,2]
[423334072,1780062641000,-150.0,0.00019638,4]
[423334055,1780062641000,-150.0,0.00019479,4]
[423334078,1780062641000,-150.0,0.00019718,4]
[423334058,1780062641000,-150.0,0.00019501,4]
[423334031,1780062641000,-150.0,0.00019288,4]
[423334026,1780062641000,-150.0,0.00019241,4]
[423334027,1780062641000,-469.99,0.00019244,2]
[423334028,1780062641000,-150.0,0.00019249,4]
[423334034,1780062641000,-150.0,0.00019303,4]
[423334033,1780062641000,-979.73,0.000193,2]
[423334030,1780062641000,-150.0,0.00019284,4]
[423334025,1780062641000,-150.0,0.00019238,4]
[423334054,1780062641000,-150.0,0.00019463,4]
[423334047,1780062641000,-150.0,0.00019414,4]
[423334036,1780062641000,-150.0,0.00019327,4]
[423334035,1780062641000,-150.0,0.00019306,4]
[423334040,1780062641000,-150.0,0.00019371,4]
[423334046,1780062641000,-151.0,0.00019406,2]
[423334043,1780062641000,-150.0,0.00019394,4]
[423334050,1780062641000,-470.03808537,0.00019452,2]
[423334041,1780062641000,-150.0,0.00019375,4]
[423334052,1780062641000,-150.0,0.00019463,4]
[423334053,1780062641000,-150.0,0.00019463,4]
[423334049,1780062641000,-179.8866763,0.0001944,2]
[423334048,1780062641000,-150.0,0.00019436,4]
[423334051,1780062641000,-150.0,0.00019458,4]
[423334045,1780062641000,-1544.0,0.00019406,2]
[423334042,1780062641000,-150.0,0.00019393,4]
[423334037,1780062641000,-150.0,0.00019327,4]
[423334039,1780062641000,-1280.0,0.00019359,2]
[423334038,1780062641000,-150.0,0.00019349,4]
[423334044,1780062641000,-150.0,0.00019405,4]
[423334127,1780062642000,-151.0,0.00019893,2]
[423334119,1780062642000,-500.0,0.00019893,2]
[423334121,1780062642000,-256.59241585,0.00019893,2]
[423334118,1780062642000,-151.0,0.00019893,2]
[423334116,1780062642000,-151.0,0.00019893,2]
[423334115,1780062642000,-500.0,0.00019893,2]
[423334111,1780062642000,-151.0,0.00019893,2]
[423334114,1780062642000,-151.0,0.00019893,2]
[423334109,1780062642000,-151.0,0.00019893,2]
[423334122,1780062642000,-151.0,0.00019893,2]
[423334120,1780062642000,-151.0,0.00019893,2]
[423334136,1780062642000,-151.0,0.00019893,2]
[423334123,1780062642000,-500.0,0.00019893,2]
[423334128,1780062642000,-275.93152964,0.00019893,2]
[423334125,1780062642000,-266.08633524,0.00019893,2]
[423334129,1780062642000,-151.0,0.00019893,2]
[423334124,1780062642000,-151.0,0.00019893,2]
[423334131,1780062642000,-286.14099624,0.00019893,2]
[423334130,1780062642000,-151.0,0.00019893,2]
[423334141,1780062642000,-151.0,0.00019893,2]
[423334132,1780062642000,-151.0,0.00019893,2]
[423334135,1780062642000,-151.0,0.00019893,2]
[423334113,1780062642000,-238.60871557,0.00019893,2]
[423334126,1780062642000,-151.0,0.00019893,2]
[423334112,1780062642000,-500.0,0.00019893,2]
[423334096,1780062642000,-150.0,0.00019872,4]
[423334108,1780062642000,-151.0,0.00019893,2]
[423334133,1780062642000,-151.0,0.00019893,2]
[423334084,1780062642000,-150.0,0.00019794,4]
[423334085,1780062642000,-150.0,0.00019805,4]
[423334088,1780062642000,-150.0,0.00019826,4]
[423334089,1780062642000,-214.82430616,0.00019829,2]
[423334086,1780062642000,-150.0,0.00019814,4]
[423334087,1780062642000,-150.0,0.00019814,4]
[423334090,1780062642000,-150.0,0.00019839,4]
[423334091,1780062642000,-1545.0,0.00019844,2]
[423334092,1780062642000,-150.0,0.00019848,4]
[423334093,1780062642000,-150.0,0.00019852,4]
[423334095,1780062642000,-7047.06542725,0.00019871,2]
[423334094,1780062642000,-150.0,0.0001987,4]
[423334097,1780062642000,-150.0,0.00019891,4]
[423334100,1780062642000,-151.0,0.00019893,2]
[423334104,1780062642000,-151.0,0.00019893,2]
[423334101,1780062642000,-151.0,0.00019893,2]
[423334105,1780062642000,-151.0,0.00019893,2]
[423334099,1780062642000,-200.0,0.00019893,2]
[423334098,1780062642000,-151.0,0.00019893,2]
[423334103,1780062642000,-151.0,0.00019893,2]
[423334102,1780062642000,-151.0,0.00019893,2]
[423334107,1780062642000,-221.88543241,0.00019893,2]
[423334106,1780062642000,-151.0,0.00019893,2]
[423334117,1780062642000,-247.43723804,0.00019893,2]
[423334110,1780062642000,-230.09519341,0.00019893,2]
[423334139,1780062642000,-151.0,0.00019893,2]
[423334142,1780062642000,-151.0,0.00019893,2]
[423334134,1780062642000,-296.7282131,0.00019893,2]
[423334184,1780062642000,-6000.0,0.0002,2]
[423334186,1780062642000,-3186.66323601,0.0002,2]
[423334188,1780062642000,-400.0,0.0002,2]
[423334190,1780062642000,-1985.40365658,0.0002,2]
[423334202,1780062642000,-2763.0,0.0002,2]
[423334204,1780062642000,-340.0,0.0002,2]
[423334193,1780062642000,-1177.0,0.0002,2]
[423334206,1780062642000,-2554.0,0.0002,2]
[423334195,1780062642000,-1489.0,0.0002,2]
[423334197,1780062642000,-731.0,0.0002,2]
[423334199,1780062642000,-2729.0,0.0002,2]
[423334180,1780062642000,-1492.90350179,0.0002,5]
[423334208,1780062642000,-417.0,0.0002,2]
[423334213,1780062642000,-5486.0,0.0002,2]
[423334217,1780062642000,-838.0,0.0002,2]
[423334216,1780062642000,-3226.0,0.0002,2]
[423334219,1780062642000,-7357.34,0.0002,2]
[423334220,1780062642000,-1051.60070108,0.0002,7]
[423334223,1780062642000,-150.0,0.00020035,4]
[423334218,1780062642000,-150.0,0.0002,20]
[423334138,1780062642000,-151.0,0.00019893,2]
[423334222,1780062642000,-150.0,0.00020028,4]
[423334225,1780062642000,-150.0,0.00020065,4]
[423334224,1780062642000,-150.0,0.00020043,4]
[423334211,1780062642000,-912.0,0.0002,2]
[423334182,1780062642000,-10537.51094005,0.0002,2]
[423334221,1780062642000,-150.0,0.00020022,4]
[423334173,1780062642000,-1900.0,0.0002,3]
[423334178,1780062642000,-151.0,0.0002,4]
[423334137,1780062642000,-307.70715698,0.00019893,2]
[423334143,1780062642000,-151.0,0.00019893,2]
[423334153,1780062642000,-2080.17592889,0.00019893,2]
[423334145,1780062642000,-151.0,0.00019893,2]
[423334146,1780062642000,-151.0,0.00019893,2]
[423334152,1780062642000,-500.0,0.00019893,2]
[423334144,1780062642000,-500.0,0.00019893,2]
[423334149,1780062642000,-500.0,0.00019893,2]
[423334148,1780062642000,-500.0,0.00019893,2]
[423334150,1780062642000,-500.0,0.00019893,2]
[423334151,1780062642000,-500.0,0.00019893,2]
[423334140,1780062642000,-319.09232179,0.00019893,2]
[423334155,1780062642000,-150.0,0.00019913,4]
[423334147,1780062642000,-500.0,0.00019893,2]
[423334158,1780062642000,-150.0,0.0001995,4]
[423334162,1780062642000,-150.0,0.00019989,4]
[423334160,1780062642000,-150.0,0.00019978,4]
[423334156,1780062642000,-150.0,0.00019935,4]
[423334171,1780062642000,-150.0,0.0002,4]
[423334157,1780062642000,-150.0,0.00019943,4]
[423334167,1780062642000,-150.0,0.00019989,4]
[423334154,1780062642000,-150.0,0.00019901,4]
[423334164,1780062642000,-150.0,0.00019989,4]
[423334159,1780062642000,-150.0,0.00019957,4]
[423334169,1780062642000,-300.0,0.00019999,2]
[423334253,1780062643000,-150.753,0.00020175,2]
[423334264,1780062643000,-150.0,0.00020282,4]
[423334260,1780062643000,-150.0,0.00020238,4]
[423334258,1780062643000,-150.0,0.00020217,4]
[423334259,1780062643000,-150.0,0.00020218,4]
[423334256,1780062643000,-150.0,0.00020195,4]
[423334257,1780062643000,-1985.40365658,0.000202,2]
[423334261,1780062643000,-150.0,0.00020252,4]
[423334262,1780062643000,-150.0,0.0002026,4]
[423334263,1780062643000,-150.0,0.00020262,4]
[423334272,1780062643000,-150.0,0.00020369,4]
[423334265,1780062643000,-150.0,0.00020304,4]
[423334267,1780062643000,-150.0,0.00020325,4]
[423334271,1780062643000,-150.0,0.00020347,4]
[423334268,1780062643000,-150.0,0.0002034,4]
[423334270,1780062643000,-150.0,0.0002034,4]
[423334269,1780062643000,-150.0,0.0002034,4]
[423334282,1780062643000,-200.0,0.00020441,2]
[423334274,1780062643000,-150.0,0.0002039,4]
[423334255,1780062643000,-150.0,0.00020184,4]
[423334266,1780062643000,-150.0,0.00020309,4]
[423334254,1780062643000,-160.825,0.00020175,2]
[423334238,1780062643000,-150.0,0.00020164,4]
[423334247,1780062643000,-1272.0,0.00020175,2]
[423334273,1780062643000,-7567.4,0.00020381,2]
[423334226,1780062643000,-150.0,0.00020077,4]
[423334227,1780062643000,-154.76,0.00020083,2]
[423334229,1780062643000,-150.0,0.00020087,4]
[423334231,1780062643000,-592.24089798,0.00020091,2]
[423334233,1780062643000,-150.0,0.00020108,4]
[423334239,1780062643000,-150.0,0.00020164,4]
[423334232,1780062643000,-150.0,0.00020106,4]
[423334234,1780062643000,-150.0,0.00020126,4]
[423334236,1780062643000,-150.0,0.00020139,4]
[423334237,1780062643000,-150.0,0.00020152,4]
[423334240,1780062643000,-150.0,0.00020173,4]
[423334235,1780062643000,-150.0,0.0002013,4]
[423334241,1780062643000,-3549.0,0.00020175,2]
[423334243,1780062643000,-1356.0,0.00020175,2]
[423334245,1780062643000,-928.0,0.00020175,2]
[423334246,1780062643000,-525.0,0.00020175,2]
[423334250,1780062643000,-277.0,0.00020175,2]
[423334251,1780062643000,-150.0,0.00020175,2]
[423334248,1780062643000,-1245.947,0.00020175,2]
[423334249,1780062643000,-150.0,0.00020175,2]
[423334252,1780062643000,-150.353,0.00020175,2]
[423334275,1780062643000,-1985.40365658,0.000204,2]
[423334314,1780062643000,-150.0,0.0002069,4]
[423334277,1780062643000,-150.0,0.00020412,4]
[423334305,1780062643000,-150.0,0.00020607,4]
[423334310,1780062643000,-150.0,0.00020651,4]
[423334307,1780062643000,-485.88774607,0.00020628,2]
[423334309,1780062643000,-150.0,0.00020651,4]
[423334312,1780062643000,-150.0,0.00020675,4]
[423334306,1780062643000,-2000.0,0.00020628,2]
[423334302,1780062643000,-1985.40365658,0.000206,2]
[423334311,1780062643000,-150.0,0.00020672,4]
[423334304,1780062643000,-150.0,0.00020603,4]
[423334308,1780062643000,-150.0,0.00020629,4]
[423334324,1780062643000,-150.0,0.00020778,4]
[423334319,1780062643000,-150.0,0.00020741,4]
[423334317,1780062643000,-150.0,0.00020729,4]
[423334315,1780062643000,-150.0,0.00020694,4]
[423334322,1780062643000,-1575.66394522,0.00020771,2]
[423334316,1780062643000,-150.0,0.00020716,4]
[423334323,1780062643000,-231.1569584,0.00020771,2]
[423334321,1780062643000,-150.0,0.00020767,4]
[423334318,1780062643000,-150.0,0.00020737,4]
[423334278,1780062643000,-150.0,0.00020418,4]
[423334320,1780062643000,-150.0,0.00020759,4]
[423334303,1780062643000,-979.73,0.000206,2]
[423334313,1780062643000,-150.0,0.0002069,4]
[423334300,1780062643000,-150.0,0.00020584,4]
[423334301,1780062643000,-150.0,0.00020586,4]
[423334281,1780062643000,-150.0,0.0002044,4]
[423334276,1780062643000,-150.0,0.00020401,4]
[423334280,1780062643000,-150.0,0.00020434,4]
[423334279,1780062643000,-150.0,0.00020427,4]
[423334284,1780062643000,-2157.14243826,0.00020441,2]
[423334283,1780062643000,-151.0,0.00020441,2]
[423334290,1780062643000,-150.0,0.00020515,4]
[423334289,1780062643000,-150.0,0.00020499,4]
[423334288,1780062643000,-150.0,0.00020496,4]
[423334287,1780062643000,-150.0,0.00020492,4]
[423334285,1780062643000,-150.0,0.00020455,4]
[423334291,1780062643000,-150.0,0.00020515,4]
[423334297,1780062643000,-150.0,0.00020564,4]
[423334298,1780062643000,-150.0,0.00020574,4]
[423334296,1780062643000,-2253.28722746,0.00020563,7]
[423334295,1780062643000,-17965.7,0.00020548,2]
[423334299,1780062643000,-505.0,0.00020575,2]
[423334292,1780062643000,-150.0,0.00020515,4]
[423334293,1780062643000,-150.0,0.0002052,4]
[423334286,1780062643000,-150.0,0.00020477,4]
[423334294,1780062643000,-150.0,0.00020542,4]
[423334363,1780062644000,-1489.0,0.00021,2]
[423334352,1780062644000,-3765.881488,0.00021,2]
[423334355,1780062644000,-206.22076159,0.00021,4]
[423334359,1780062644000,-6111.0,0.00021,2]
[423334360,1780062644000,-15000.0,0.00021,2]
[423334354,1780062644000,-2947.4055684,0.00021,2]
[423334361,1780062644000,-4927.83431193,0.00021,2]
[423334356,1780062644000,-15000.0,0.00021,2]
[423334357,1780062644000,-15000.0,0.00021,2]
[423334358,1780062644000,-1985.40365658,0.00021,2]
[423334374,1780062644000,-394.0,0.00021016,2]
[423334380,1780062644000,-226.42973049,0.00021041,4]
[423334364,1780062644000,-731.0,0.00021,2]
[423334368,1780062644000,-2554.0,0.00021,2]
[423334366,1780062644000,-2763.0,0.00021,2]
[423334373,1780062644000,-592.24089798,0.00021005,2]
[423334369,1780062644000,-417.0,0.00021,2]
[423334372,1780062644000,-838.0,0.00021,2]
[423334365,1780062644000,-2729.0,0.00021,2]
[423334371,1780062644000,-5486.0,0.00021,2]
[423334370,1780062644000,-912.0,0.00021,2]
[423334375,1780062644000,-150.0,0.00021019,4]
[423334351,1780062644000,-300.0,0.00020999,2]
[423334367,1780062644000,-340.0,0.00021,2]
[423334353,1780062644000,-15000.0,0.00021,2]
[423334329,1780062644000,-150.0,0.00020824,4]
[423334342,1780062644000,-150.0,0.0002095,4]
[423334325,1780062644000,-150.0,0.00020781,4]
[423334328,1780062644000,-150.0,0.00020807,4]
[423334379,1780062644000,-223.21618626,0.00021041,4]
[423334327,1780062644000,-150.0,0.00020802,4]
[423334326,1780062644000,-1985.40365658,0.000208,2]
[423334330,1780062644000,-150.0,0.00020846,4]
[423334334,1780062644000,-150.0,0.00020866,4]
[423334331,1780062644000,-150.0,0.00020858,4]
[423334336,1780062644000,-150.0,0.00020885,4]
[423334332,1780062644000,-1094.0377033,0.00020859,2]
[423334333,1780062644000,-150.0,0.00020866,4]
[423334345,1780062644000,-150.0,0.00020963,4]
[423334335,1780062644000,-150.0,0.00020868,4]
[423334348,1780062644000,-151.0,0.00020989,2]
[423334350,1780062644000,-150.0,0.00020998,4]
[423334349,1780062644000,-2236.95670847,0.00020989,2]
[423334337,1780062644000,-150.0,0.00020889,4]
[423334339,1780062644000,-150.0,0.00020911,4]
[423334340,1780062644000,-259930.5612858,0.00020924,2]
[423334346,1780062644000,-150.0,0.00020976,4]
[423334344,1780062644000,-150.0,0.00020954,4]
[423334341,1780062644000,-150.0,0.00020933,4]
[423334347,1780062644000,-200.0,0.00020989,2]
[423334343,1780062644000,-150.0,0.00020953,4]
[423334338,1780062644000,-3162.0,0.00020899,2]
[423334376,1780062644000,-161.00565652,0.00021041,2]
[423334362,1780062644000,-1177.0,0.00021,2]
[423334377,1780062644000,-210.22869687,0.00021041,4]
[423334406,1780062644000,-667.030463,0.00021051,2]
[423334407,1780062644000,-667.030463,0.00021051,2]
[423334410,1780062644000,-923.097563,0.00021051,2]
[423334413,1780062644000,-923.097563,0.00021051,2]
[423334412,1780062644000,-899.662535,0.00021051,2]
[423334419,1780062644000,-606.59956,0.00021051,2]
[423334420,1780062644000,-606.59956,0.00021051,2]
[423334415,1780062644000,-923.097563,0.00021051,2]
[423334423,1780062644000,-4101.394339,0.00021051,2]
[423334416,1780062644000,-899.662535,0.00021051,2]
[423334418,1780062644000,-606.59956,0.00021051,2]
[423334425,1780062644000,-4101.394339,0.00021051,2]
[423334414,1780062644000,-899.662535,0.00021051,2]
[423334421,1780062644000,-606.59956,0.00021051,2]